[Event "*** Titled Tuesday 3|2 Blitz"]
[Site "Chess.com"]
[Date "2016.03.01"]
[Round "3"]
[White "Saitama_Hero"]
[Black "kikydu96"]
[Result "1-0"]
[WhiteElo "2080"]
[BlackElo "2276"]
[TimeControl "180+2"]
[EndTime "12:00:18 PST"]
[Termination "Saitama_Hero won by resignation"]

1. d4 {[%clk 0:03:01.9]} 1... d5 {[%clk 0:02:58]} 2. c4 {[%clk 0:03:02.9]} 2...
c6 {[%clk 0:02:59.3]} 3. Nf3 {[%clk 0:03:03.9]} 3... Nf6 {[%clk 0:03:00.6]} 4.
Nc3 {[%clk 0:03:05.5]} 4... dxc4 {[%clk 0:03:01.8]} 5. a4 {[%clk 0:03:05]} 5...
Bg4 {[%clk 0:03:01.7]} 6. e3 {[%clk 0:02:58.1]} 6... e5 {[%clk 0:03:02.2]} 7.
Bxc4 {[%clk 0:02:57.4]} 7... exd4 {[%clk 0:03:02.3]} 8. exd4 {[%clk 0:02:52.2]}
8... Be7 {[%clk 0:03:00.5]} 9. Bxf7+ {[%clk 0:02:52]} 9... Kf8 {[%clk
0:02:57.1]} 10. Bc4 {[%clk 0:02:45.7]} 10... Bxf3 {[%clk 0:02:50.6]} 11. Qxf3
{[%clk 0:02:47.6]} 11... Qxd4 {[%clk 0:02:51.1]} 12. Bb3 {[%clk 0:02:48.5]}
12... Qe5+ {[%clk 0:02:48.2]} 13. Be3 {[%clk 0:02:48]} 13... Bb4 {[%clk
0:02:44.1]} 14. O-O {[%clk 0:02:46.7]} 14... Nd7 {[%clk 0:02:42.8]} 15. Rad1
{[%clk 0:02:44.9]} 15... Nc5 {[%clk 0:02:35.8]} 16. Bxc5+ {[%clk 0:02:40.3]}
16... Bxc5 {[%clk 0:02:35.6]} 17. Rd7 {[%clk 0:02:23.5]} 17... Re8 {[%clk
0:02:24.4]} 18. Rf7+ {[%clk 0:02:23.3]} 18... Kg8 {[%clk 0:02:22.4]} 19. Rxf6+
{[%clk 0:02:24.8]} 1-0

[Event "*** Titled Tuesday 3|2 Blitz"]
[Site "Chess.com"]
[Date "2016.03.01"]
[Round "3"]
[White "alturas_pacificas"]
[Black "chorejason"]
[Result "0-1"]
[WhiteElo "2170"]
[BlackElo "2097"]
[TimeControl "180+2"]
[EndTime "12:01:55 PST"]
[Termination "chorejason won by resignation"]

1. d4 {[%clk 0:03:01.9]} 1... Nf6 {[%clk 0:03:00.3]} 2. Bf4 {[%clk 0:03:02.4]}
2... g6 {[%clk 0:02:59.6]} 3. e3 {[%clk 0:03:01.8]} 3... Bg7 {[%clk 0:03:00.8]}
4. Be2 {[%clk 0:03:03]} 4... O-O {[%clk 0:03:01.7]} 5. Nf3 {[%clk 0:03:04.3]}
5... d5 {[%clk 0:03:02.7]} 6. O-O {[%clk 0:03:04.9]} 6... c5 {[%clk 0:03:04]} 7.
c4 {[%clk 0:03:06.2]} 7... Qb6 {[%clk 0:02:53.6]} 8. b3 {[%clk 0:02:59.7]} 8...
Nc6 {[%clk 0:02:52.8]} 9. Nc3 {[%clk 0:02:52.4]} 9... cxd4 {[%clk 0:02:36.6]}
10. Nxd4 {[%clk 0:02:51.2]} 10... Nxd4 {[%clk 0:02:33.2]} 11. Qxd4 {[%clk
0:02:51.8]} 11... dxc4 {[%clk 0:02:30.8]} 12. Qxb6 {[%clk 0:02:51.3]} 12... axb6
{[%clk 0:02:30.8]} 13. Bxc4 {[%clk 0:02:52.7]} 13... Nh5 {[%clk 0:02:30.2]} 14.
Rac1 {[%clk 0:02:31]} 14... Nxf4 {[%clk 0:02:21.5]} 15. exf4 {[%clk 0:02:28.7]}
15... Rd8 {[%clk 0:02:22.6]} 16. a4 {[%clk 0:02:24.5]} 16... Bg4 {[%clk
0:02:20.3]} 17. h3 {[%clk 0:02:23.9]} 17... Bf5 {[%clk 0:02:11.4]} 18. Nd5
{[%clk 0:02:24.6]} 18... e6 {[%clk 0:01:32.1]} 19. Nxb6 {[%clk 0:02:25]} 19...
Rab8 {[%clk 0:01:20.6]} 20. Rfd1 {[%clk 0:02:25.3]} 20... Bd4 {[%clk 0:01:14.8]}
21. a5 {[%clk 0:02:26]} 21... Kg7 {[%clk 0:01:09.6]} 22. Rd2 {[%clk 0:02:15.1]}
22... Bxb6 {[%clk 0:01:09.5]} 23. Rxd8 {[%clk 0:02:12.1]} 23... Bxd8 {[%clk
0:01:10.7]} 0-1

[Event "*** Titled Tuesday 3|2 Blitz"]
[Site "Chess.com"]
[Date "2016.03.01"]
[Round "3"]
[White "Blitzstream"]
[Black "petrpalachev"]
[Result "1-0"]
[WhiteElo "2452"]
[BlackElo "2280"]
[TimeControl "180+2"]
[EndTime "12:03:20 PST"]
[Termination "Blitzstream won by resignation"]

1. d4 {[%clk 0:03:01.9]} 1... Nf6 {[%clk 0:01:48.2]} 2. Bg5 {[%clk 0:03:01.2]}
2... e6 {[%clk 0:01:48.6]} 3. e4 {[%clk 0:03:01.6]} 3... h6 {[%clk 0:01:49]} 4.
Bxf6 {[%clk 0:03:02.4]} 4... Qxf6 {[%clk 0:01:50.9]} 5. c3 {[%clk 0:03:04]} 5...
d5 {[%clk 0:01:50.4]} 6. Nd2 {[%clk 0:03:04.3]} 6... dxe4 {[%clk 0:01:44.1]} 7.
Nxe4 {[%clk 0:03:04.6]} 7... Qd8 {[%clk 0:01:46]} 8. Bd3 {[%clk 0:03:04.3]} 8...
Be7 {[%clk 0:01:46.8]} 9. Nf3 {[%clk 0:03:04.1]} 9... Nd7 {[%clk 0:01:48.4]} 10.
Qe2 {[%clk 0:03:02.8]} 10... Nf6 {[%clk 0:01:38.8]} 11. O-O-O {[%clk 0:02:54]}
11... Nxe4 {[%clk 0:01:37.1]} 12. Bxe4 {[%clk 0:02:47.8]} 12... Rb8 {[%clk
0:01:37.1]} 13. Ne5 {[%clk 0:02:45.6]} 13... O-O {[%clk 0:01:18.9]} 14. g4
{[%clk 0:02:41.3]} 14... Bg5+ {[%clk 0:01:18.2]} 15. Kb1 {[%clk 0:02:41.9]}
15... Bd7 {[%clk 0:01:13.1]} 16. Bc2 {[%clk 0:02:23.2]} 16... Bc6 {[%clk
0:01:09.2]} 17. Nxc6 {[%clk 0:02:21.1]} 17... bxc6 {[%clk 0:01:11.1]} 18. f4
{[%clk 0:02:22.7]} 18... Be7 {[%clk 0:00:49.3]} 19. g5 {[%clk 0:02:20.9]} 19...
hxg5 {[%clk 0:00:36.4]} 20. fxg5 {[%clk 0:02:16.7]} 20... Bxg5 {[%clk
0:00:37.4]} 21. Rhg1 {[%clk 0:02:17]} 21... Bh6 {[%clk 0:00:31.5]} 22. Qh5
{[%clk 0:01:45.5]} 22... Kh8 {[%clk 0:00:15.8]} 23. Rxg7 {[%clk 0:01:45]} 23...
Kxg7 {[%clk 0:00:13.5]} 24. Rg1+ {[%clk 0:01:45.8]} 1-0

[Event "*** Titled Tuesday 3|2 Blitz"]
[Site "Chess.com"]
[Date "2016.03.01"]
[Round "3"]
[White "Quiet_Desperation"]
[Black "davidarenas1224"]
[Result "0-1"]
[WhiteElo "2237"]
[BlackElo "2103"]
[TimeControl "180+2"]
[EndTime "12:03:33 PST"]
[Termination "davidarenas1224 won by resignation"]

1. e4 {[%clk 0:03:01.9]} 1... c5 {[%clk 0:03:01]} 2. Nf3 {[%clk 0:03:02.8]} 2...
d6 {[%clk 0:03:02.2]} 3. d4 {[%clk 0:03:03.8]} 3... cxd4 {[%clk 0:03:04.1]} 4.
Nxd4 {[%clk 0:03:05.2]} 4... Nf6 {[%clk 0:03:05.6]} 5. Nc3 {[%clk 0:03:06.7]}
5... g6 {[%clk 0:03:07.2]} 6. Be3 {[%clk 0:03:07.7]} 6... a6 {[%clk 0:03:08.5]}
7. f3 {[%clk 0:03:09]} 7... b5 {[%clk 0:03:09.3]} 8. Qd2 {[%clk 0:03:10.4]} 8...
Bb7 {[%clk 0:03:10.5]} 9. O-O-O {[%clk 0:03:11.5]} 9... h5 {[%clk 0:03:10.3]}
10. Kb1 {[%clk 0:03:12.6]} 10... Nbd7 {[%clk 0:03:11.1]} 11. h4 {[%clk
0:03:13.2]} 11... Rc8 {[%clk 0:03:07.7]} 12. Bd3 {[%clk 0:03:14.1]} 12... b4
{[%clk 0:02:57.1]} 13. Nce2 {[%clk 0:03:13.7]} 13... e5 {[%clk 0:02:54.5]} 14.
Nb3 {[%clk 0:03:12.4]} 14... d5 {[%clk 0:02:55.8]} 15. exd5 {[%clk 0:03:09.8]}
15... Nxd5 {[%clk 0:02:57.7]} 16. Be4 {[%clk 0:03:06.3]} 16... N7f6 {[%clk
0:02:36.1]} 17. Bg5 {[%clk 0:03:03.1]} 17... Qc7 {[%clk 0:02:33.4]} 18. Ng3
{[%clk 0:02:24.8]} 18... Bg7 {[%clk 0:02:24.4]} 19. Bxd5 {[%clk 0:02:24.1]}
19... Nxd5 {[%clk 0:02:22.5]} 20. Ne4 {[%clk 0:02:20.8]} 20... O-O {[%clk
0:02:20.5]} 21. Rc1 {[%clk 0:02:15.7]} 21... a5 {[%clk 0:02:18.6]} 22. Bh6
{[%clk 0:01:47.2]} 22... Nf4 {[%clk 0:02:10.6]} 23. Bxg7 {[%clk 0:01:42.9]}
23... Kxg7 {[%clk 0:02:12.5]} 24. g3 {[%clk 0:01:42]} 24... Bxe4 {[%clk
0:02:08.1]} 25. fxe4 {[%clk 0:01:37.4]} 25... Ne6 {[%clk 0:02:09.1]} 26. Rhf1
{[%clk 0:01:30.2]} 26... a4 {[%clk 0:02:04]} 27. Na1 {[%clk 0:01:31.4]} 27...
Rb8 {[%clk 0:01:54.3]} 28. c3 {[%clk 0:01:27.4]} 28... b3 {[%clk 0:01:52.2]} 29.
Qd5 {[%clk 0:01:04.2]} 29... Rfd8 {[%clk 0:01:47.8]} 30. Rxf7+ {[%clk 0:00:56]}
30... Kxf7 {[%clk 0:01:28.4]} 31. Rf1+ {[%clk 0:00:56.6]} 31... Ke7 {[%clk
0:01:29.4]} 0-1

[Event "*** Titled Tuesday 3|2 Blitz"]
[Site "Chess.com"]
[Date "2016.03.01"]
[Round "3"]
[White "dretch"]
[Black "Aygehovit1992"]
[Result "1-0"]
[WhiteElo "2482"]
[BlackElo "2403"]
[TimeControl "180+2"]
[EndTime "12:04:49 PST"]
[Termination "dretch won by resignation"]

1. d4 {[%clk 0:03:01.9]} 1... d6 {[%clk 0:03:01.9]} 2. Nf3 {[%clk 0:03:02.3]}
2... g6 {[%clk 0:03:03.6]} 3. c4 {[%clk 0:03:03.5]} 3... Bg7 {[%clk 0:03:05.3]}
4. e4 {[%clk 0:03:05]} 4... Bg4 {[%clk 0:03:06.4]} 5. Be2 {[%clk 0:03:05.5]}
5... Bxf3 {[%clk 0:03:06.4]} 6. Bxf3 {[%clk 0:03:06.4]} 6... e5 {[%clk 0:03:07]}
7. d5 {[%clk 0:03:05]} 7... a5 {[%clk 0:03:07.4]} 8. Nc3 {[%clk 0:03:03.8]} 8...
Na6 {[%clk 0:03:08.9]} 9. h4 {[%clk 0:03:04.2]} 9... h5 {[%clk 0:03:09.3]} 10.
Bg5 {[%clk 0:02:59.2]} 10... Bf6 {[%clk 0:03:10.4]} 11. Qd2 {[%clk 0:02:56.6]}
11... Bxg5 {[%clk 0:03:10.3]} 12. hxg5 {[%clk 0:02:58]} 12... Nc5 {[%clk
0:03:09]} 13. O-O-O {[%clk 0:02:57.3]} 13... Ne7 {[%clk 0:03:00.5]} 14. Rh4
{[%clk 0:02:56.4]} 14... Rf8 {[%clk 0:02:36.1]} 15. g4 {[%clk 0:02:56.4]} 15...
hxg4 {[%clk 0:02:37.7]} 16. Bxg4 {[%clk 0:02:57.6]} 16... Nc8 {[%clk 0:02:39.2]}
17. Rdh1 {[%clk 0:02:45.8]} 17... Nb6 {[%clk 0:02:39.3]} 18. b3 {[%clk
0:02:40.8]} 18... a4 {[%clk 0:02:19.2]} 19. Kb2 {[%clk 0:02:01.1]} 19... axb3
{[%clk 0:01:49.1]} 20. axb3 {[%clk 0:02:03]} 20... c6 {[%clk 0:01:15.1]} 21. Qe3
{[%clk 0:01:54.3]} 21... Nxc4+ {[%clk 0:01:11.9]} 22. bxc4 {[%clk 0:01:50.8]}
22... Qb6+ {[%clk 0:01:12.7]} 23. Kc2 {[%clk 0:01:36.2]} 23... Qb3+ {[%clk
0:00:51.6]} 24. Kd2 {[%clk 0:01:37.5]} 24... Qb2+ {[%clk 0:00:47.9]} 25. Ke1
{[%clk 0:01:38.3]} 25... Ra3 {[%clk 0:00:49]} 26. R4h3 {[%clk 0:01:23.6]} 26...
Na4 {[%clk 0:00:44.5]} 27. Qd2 {[%clk 0:01:16.7]} 27... Qa1+ {[%clk 0:00:16.3]}
28. Nd1 {[%clk 0:01:17.2]} 28... Ke7 {[%clk 0:00:13.5]} 29. Rxa3 {[%clk
0:01:13.3]} 29... Qxa3 {[%clk 0:00:14.5]} 30. Rh3 {[%clk 0:01:13.5]} 30... Qc5
{[%clk 0:00:14.3]} 31. Rb3 {[%clk 0:01:12.2]} 31... Nb6 {[%clk 0:00:07.7]} 32.
Qb4 {[%clk 0:01:10.7]} 32... Nxc4 {[%clk 0:00:03.6]} 33. Qxc5 {[%clk 0:01:10.6]}
33... dxc5 {[%clk 0:00:04.6]} 34. Rxb7+ {[%clk 0:01:11.7]} 1-0

[Event "*** Titled Tuesday 3|2 Blitz"]
[Site "Chess.com"]
[Date "2016.03.01"]
[Round "3"]
[White "Gevorg_Harutjunyan"]
[Black "AndroQueen"]
[Result "0-1"]
[WhiteElo "2608"]
[BlackElo "2546"]
[TimeControl "180+2"]
[EndTime "12:05:17 PST"]
[Termination "AndroQueen won by checkmate"]

1. Nf3 {[%clk 0:03:01.2]} 1... d5 {[%clk 0:03:00]} 2. g3 {[%clk 0:03:01.6]} 2...
g6 {[%clk 0:03:01.1]} 3. Bg2 {[%clk 0:03:01.5]} 3... Bg7 {[%clk 0:03:02.5]} 4.
d4 {[%clk 0:03:01.7]} 4... Nf6 {[%clk 0:03:03]} 5. O-O {[%clk 0:03:02]} 5... O-O
{[%clk 0:03:04.1]} 6. c4 {[%clk 0:03:03.1]} 6... dxc4 {[%clk 0:03:06]} 7. Na3
{[%clk 0:03:03.6]} 7... c3 {[%clk 0:03:05.6]} 8. bxc3 {[%clk 0:03:05.5]} 8... c5
{[%clk 0:03:06.8]} 9. e3 {[%clk 0:02:59.1]} 9... Nc6 {[%clk 0:03:05]} 10. Qe2
{[%clk 0:02:54.2]} 10... Bf5 {[%clk 0:02:59]} 11. Bb2 {[%clk 0:02:44.4]} 11...
Qa5 {[%clk 0:02:48.3]} 12. Rfd1 {[%clk 0:02:30]} 12... Rfd8 {[%clk 0:02:29.7]}
13. h3 {[%clk 0:02:18.3]} 13... Be4 {[%clk 0:02:18.8]} 14. Qb5 {[%clk
0:01:53.8]} 14... Qxb5 {[%clk 0:02:15.6]} 15. Nxb5 {[%clk 0:01:55.7]} 15... Na5
{[%clk 0:02:09.4]} 16. Na3 {[%clk 0:01:26.8]} 16... Rac8 {[%clk 0:02:05.1]} 17.
Rac1 {[%clk 0:01:11.2]} 17... Nd5 {[%clk 0:01:56.4]} 18. Nd2 {[%clk 0:00:59.7]}
18... Bxg2 {[%clk 0:01:58.3]} 19. Kxg2 {[%clk 0:01:01.4]} 19... Nb6 {[%clk
0:01:55.2]} 20. Ne4 {[%clk 0:00:52.7]} 20... Nbc4 {[%clk 0:01:43]} 21. Nxc4
{[%clk 0:00:52]} 21... Nxc4 {[%clk 0:01:44.9]} 22. Ba1 {[%clk 0:00:50.8]} 22...
b6 {[%clk 0:01:46]} 23. g4 {[%clk 0:00:42.9]} 23... h6 {[%clk 0:01:40.5]} 24.
Kf3 {[%clk 0:00:42.5]} 24... f5 {[%clk 0:01:26.8]} 25. gxf5 {[%clk 0:00:43.4]}
25... gxf5 {[%clk 0:01:28.7]} 26. Ng3 {[%clk 0:00:44.8]} 26... e6 {[%clk
0:01:29.4]} 27. Nh5 {[%clk 0:00:44.3]} 27... Kf7 {[%clk 0:01:29.5]} 28. Rg1
{[%clk 0:00:40.4]} 28... Bh8 {[%clk 0:01:28.3]} 29. Ke2 {[%clk 0:00:39.2]} 29...
b5 {[%clk 0:01:20.3]} 30. Nf4 {[%clk 0:00:35.6]} 30... a6 {[%clk 0:01:20]} 31.
Rg6 {[%clk 0:00:21.2]} 31... e5 {[%clk 0:01:17.6]} 32. dxe5 {[%clk 0:00:21.2]}
32... Rd2+ {[%clk 0:01:16.8]} 33. Ke1 {[%clk 0:00:22.4]} 33... Bxe5 {[%clk
0:01:14.9]} 34. Rxa6 {[%clk 0:00:14.5]} 34... Bxf4 {[%clk 0:01:13.5]} 35. exf4
{[%clk 0:00:14.8]} 35... Re8+ {[%clk 0:01:14.6]} 36. Kf1 {[%clk 0:00:16.4]}
36... Ree2 {[%clk 0:01:15.5]} 37. Ra7+ {[%clk 0:00:17.7]} 37... Kg6 {[%clk
0:01:11.9]} 38. Re1 {[%clk 0:00:07]} 38... Rxf2+ {[%clk 0:01:10.4]} 39. Kg1
{[%clk 0:00:08.5]} 39... Rg2+ {[%clk 0:01:11.8]} 40. Kh1 {[%clk 0:00:10]} 40...
Rh2+ {[%clk 0:01:12.3]} 41. Kg1 {[%clk 0:00:11.5]} 41... Rdg2+ {[%clk 0:01:12]}
42. Kf1 {[%clk 0:00:12.9]} 42... Nd2# {[%clk 0:01:13.2]} 0-1

[Event "*** Titled Tuesday 3|2 Blitz"]
[Site "Chess.com"]
[Date "2016.03.01"]
[Round "3"]
[White "arnacman"]
[Black "jup1978"]
[Result "1-0"]
[WhiteElo "2308"]
[BlackElo "2259"]
[TimeControl "180+2"]
[EndTime "12:05:39 PST"]
[Termination "arnacman won by resignation"]

1. e4 {[%clk 0:03:01.9]} 1... c5 {[%clk 0:02:58.9]} 2. Nf3 {[%clk 0:03:02.2]}
2... d6 {[%clk 0:02:59.9]} 3. d4 {[%clk 0:03:03.7]} 3... cxd4 {[%clk 0:03:01.8]}
4. Nxd4 {[%clk 0:03:03.8]} 4... Nf6 {[%clk 0:03:03.3]} 5. Nc3 {[%clk 0:03:05.2]}
5... a6 {[%clk 0:03:04.9]} 6. h3 {[%clk 0:03:06.2]} 6... e5 {[%clk 0:03:05.7]}
7. Nde2 {[%clk 0:03:06.6]} 7... h5 {[%clk 0:03:07.3]} 8. Ng1 {[%clk 0:03:06.4]}
8... Nc6 {[%clk 0:03:02.6]} 9. Nf3 {[%clk 0:03:07.1]} 9... Be7 {[%clk
0:02:57.7]} 10. Ng5 {[%clk 0:03:00.7]} 10... b5 {[%clk 0:02:50.9]} 11. Nd5
{[%clk 0:02:20.8]} 11... Nxd5 {[%clk 0:02:47.8]} 12. Qxd5 {[%clk 0:02:17.8]}
12... Bxg5 {[%clk 0:02:40.6]} 13. Bxg5 {[%clk 0:02:16.1]} 13... f6 {[%clk
0:02:35.7]} 14. Qxc6+ {[%clk 0:02:10.8]} 14... Bd7 {[%clk 0:02:35.8]} 15. Qxd6
{[%clk 0:02:07.5]} 15... fxg5 {[%clk 0:02:36.9]} 16. Qxe5+ {[%clk 0:02:07.2]}
16... Qe7 {[%clk 0:02:37.5]} 17. Qd5 {[%clk 0:01:56.5]} 17... Rc8 {[%clk
0:02:32]} 18. O-O-O {[%clk 0:01:45]} 18... Bc6 {[%clk 0:02:32.5]} 19. Qf5 {[%clk
0:01:33.8]} 19... Rc7 {[%clk 0:02:24.7]} 20. Qg6+ {[%clk 0:01:21.8]} 20... Kf8
{[%clk 0:02:20.5]} 21. Bd3 {[%clk 0:01:20.2]} 21... Rh6 {[%clk 0:02:21.3]} 22.
Qf5+ {[%clk 0:01:10.6]} 22... Kg8 {[%clk 0:02:21.8]} 23. e5 {[%clk 0:01:02.2]}
23... Re6 {[%clk 0:02:17.7]} 24. Rhe1 {[%clk 0:01:00]} 24... Be8 {[%clk
0:02:08.2]} 25. Qh7+ {[%clk 0:00:58]} 25... Kf8 {[%clk 0:02:08.7]} 26. Re3
{[%clk 0:00:52.8]} 26... g4 {[%clk 0:01:57.5]} 27. hxg4 {[%clk 0:00:49.1]} 27...
hxg4 {[%clk 0:01:59.4]} 28. Qf5+ {[%clk 0:00:46.3]} 28... Kg8 {[%clk 0:01:58.8]}
29. Rh1 {[%clk 0:00:45.9]} 29... Bg6 {[%clk 0:01:59.2]} 30. Qxg4 {[%clk
0:00:39.6]} 30... Bxd3 {[%clk 0:01:59.9]} 31. Rxd3 {[%clk 0:00:40.5]} 31... Rxe5
{[%clk 0:02:00.7]} 32. Qd1 {[%clk 0:00:34.4]} 32... Rec5 {[%clk 0:01:56]} 33. c3
{[%clk 0:00:24.8]} 33... b4 {[%clk 0:01:46.7]} 34. Rd8+ {[%clk 0:00:17]} 34...
Kf7 {[%clk 0:01:47.5]} 35. Re1 {[%clk 0:00:17.3]} 35... Qg5+ {[%clk 0:01:44.5]}
36. f4 {[%clk 0:00:17.1]} 36... Qxf4+ {[%clk 0:01:38.8]} 37. Kb1 {[%clk
0:00:18.2]} 37... bxc3 {[%clk 0:01:39.5]} 38. Rd7+ {[%clk 0:00:18.2]} 38... Rxd7
{[%clk 0:01:23.9]} 39. Qxd7+ {[%clk 0:00:17.4]} 39... Kg6 {[%clk 0:01:23.9]} 40.
Re6+ {[%clk 0:00:11.7]} 40... Kh7 {[%clk 0:01:08.9]} 41. Qd3+ {[%clk 0:00:12.1]}
41... g6 {[%clk 0:01:05.1]} 42. Qxg6+ {[%clk 0:00:10.1]} 42... Kh8 {[%clk
0:01:03.9]} 43. Re8+ {[%clk 0:00:10.6]} 1-0

[Event "*** Titled Tuesday 3|2 Blitz"]
[Site "Chess.com"]
[Date "2016.03.01"]
[Round "3"]
[White "Silent_Terror"]
[Black "HovmoellerHest"]
[Result "0-1"]
[WhiteElo "2504"]
[BlackElo "2366"]
[TimeControl "180+2"]
[EndTime "12:06:34 PST"]
[Termination "HovmoellerHest won by resignation"]

1. e4 {[%clk 0:03:01.9]} 1... c5 {[%clk 0:02:55.6]} 2. Be2 {[%clk 0:03:01.5]}
2... Nc6 {[%clk 0:02:55.9]} 3. d3 {[%clk 0:03:02.9]} 3... g6 {[%clk 0:02:56.5]}
4. f4 {[%clk 0:03:04.2]} 4... Bg7 {[%clk 0:02:57.4]} 5. Nf3 {[%clk 0:03:05.9]}
5... e6 {[%clk 0:02:58.3]} 6. O-O {[%clk 0:03:07.2]} 6... d6 {[%clk 0:02:57.7]}
7. c3 {[%clk 0:03:08.5]} 7... Nge7 {[%clk 0:02:58.7]} 8. Na3 {[%clk 0:03:10]}
8... O-O {[%clk 0:02:59.1]} 9. Be3 {[%clk 0:03:09.6]} 9... Rb8 {[%clk
0:02:58.2]} 10. Qe1 {[%clk 0:03:01.5]} 10... b5 {[%clk 0:02:46.1]} 11. Nc2
{[%clk 0:02:52.7]} 11... b4 {[%clk 0:02:45.1]} 12. Bd2 {[%clk 0:02:41.9]} 12...
a5 {[%clk 0:02:35.4]} 13. Rb1 {[%clk 0:02:36.7]} 13... Qb6 {[%clk 0:02:34]} 14.
c4 {[%clk 0:02:26]} 14... b3 {[%clk 0:02:28.8]} 15. axb3 {[%clk 0:02:24.7]}
15... Qxb3 {[%clk 0:02:29.8]} 16. Na3 {[%clk 0:02:22.8]} 16... Qb6 {[%clk
0:01:58.3]} 17. Nb5 {[%clk 0:02:20.8]} 17... Nb4 {[%clk 0:01:50.9]} 18. Bc3
{[%clk 0:02:15.8]} 18... f6 {[%clk 0:01:40.4]} 19. e5 {[%clk 0:02:09.1]} 19...
dxe5 {[%clk 0:01:22.8]} 20. fxe5 {[%clk 0:02:09.7]} 20... f5 {[%clk 0:01:24.2]}
21. Qh4 {[%clk 0:02:02.9]} 21... Nec6 {[%clk 0:01:12.4]} 22. Qf4 {[%clk
0:01:36]} 22... h6 {[%clk 0:00:55.6]} 23. h4 {[%clk 0:01:36.1]} 23... Ba6 {[%clk
0:00:55]} 24. Nd6 {[%clk 0:01:32.1]} 24... Qd8 {[%clk 0:00:22.3]} 25. Rfe1
{[%clk 0:01:25.8]} 25... Nc2 {[%clk 0:00:10.9]} 26. Rec1 {[%clk 0:01:18.5]}
26... N2b4 {[%clk 0:00:11.1]} 27. Bf1 {[%clk 0:01:15.4]} 27... Kh7 {[%clk
0:00:09.6]} 28. Re1 {[%clk 0:01:13.8]} 28... Qe7 {[%clk 0:00:10.4]} 29. g3
{[%clk 0:00:54.1]} 29... Rbd8 {[%clk 0:00:11.4]} 30. Nb5 {[%clk 0:00:36.3]}
30... Bxb5 {[%clk 0:00:11.1]} 31. cxb5 {[%clk 0:00:37.4]} 31... Nd4 {[%clk
0:00:06.9]} 32. Nxd4 {[%clk 0:00:25.6]} 32... cxd4 {[%clk 0:00:08.8]} 33. Bd2
{[%clk 0:00:20.1]} 33... Qc5 {[%clk 0:00:09.9]} 34. Rec1 {[%clk 0:00:15.8]}
34... Qxb5 {[%clk 0:00:11.3]} 35. Rc4 {[%clk 0:00:16.9]} 35... Rd7 {[%clk
0:00:09.5]} 36. Re1 {[%clk 0:00:16.5]} 36... Rfd8 {[%clk 0:00:10.4]} 37. b3
{[%clk 0:00:17.2]} 37... Qb6 {[%clk 0:00:09.4]} 38. Bxb4 {[%clk 0:00:17.5]}
38... axb4 {[%clk 0:00:10.4]} 39. Bg2 {[%clk 0:00:18.8]} 39... Qb5 {[%clk
0:00:10.7]} 40. Bc6 {[%clk 0:00:19.1]} 40... Qa5 {[%clk 0:00:09.9]} 41. Bxd7
{[%clk 0:00:19.9]} 41... Rxd7 {[%clk 0:00:11.4]} 42. Rxd4 {[%clk 0:00:19.1]}
42... Qc5 {[%clk 0:00:11.6]} 43. Rc1 {[%clk 0:00:16.7]} 43... Qxd4+ {[%clk
0:00:12.8]} 44. Qxd4 {[%clk 0:00:17.9]} 44... Rxd4 {[%clk 0:00:14.7]} 45. Rc7
{[%clk 0:00:19.3]} 45... Rxd3 {[%clk 0:00:15.2]} 46. Re7 {[%clk 0:00:20.1]}
46... Rxg3+ {[%clk 0:00:16.3]} 47. Kf2 {[%clk 0:00:21]} 47... Rxb3 {[%clk
0:00:18.2]} 48. Rxe6 {[%clk 0:00:22.9]} 48... Rb2+ {[%clk 0:00:18.5]} 49. Kf3
{[%clk 0:00:23.8]} 49... b3 {[%clk 0:00:19.8]} 50. Rb6 {[%clk 0:00:25.7]} 50...
Rb1 {[%clk 0:00:20.9]} 51. e6 {[%clk 0:00:27.6]} 51... Re1 {[%clk 0:00:21.6]}
52. Kg2 {[%clk 0:00:29.5]} 52... b2 {[%clk 0:00:21]} 53. e7 {[%clk 0:00:30.9]}
53... Rxe7 {[%clk 0:00:20.3]} 0-1